lending/lending_fUSD_20240703
["ID","MTS","AMOUNT","RATE_DAILY","PERIOD"]
[330970236,1719976251571,-500.0,0.000211,2]
[330970237,1719976251581,-500.0,0.000211,2]
[330970238,1719976251590,-500.0,0.000211,2]
[330970239,1719976251599,-500.0,0.000211,2]
[330970240,1719976251608,-500.0,0.000211,2]
[330970241,1719976251618,-500.0,0.000211,2]
[330970242,1719976251627,-500.0,0.000211,2]
[330970243,1719976251638,-500.0,0.000211,2]
[330970244,1719976251647,-500.0,0.000211,2]
[330970245,1719976251657,-500.0,0.000211,2]
[330970246,1719976251666,-500.0,0.000211,2]
[330970247,1719976251676,-500.0,0.000211,2]
[330970248,1719976251686,-500.0,0.000211,2]
[330970249,1719976251696,-500.0,0.000211,2]
[330970250,1719976251706,-500.0,0.000211,2]
[330970251,1719976251715,-500.0,0.000211,2]
[330970252,1719976251725,-500.0,0.000211,2]
[330970253,1719976251735,-500.0,0.000211,2]
[330970254,1719976251745,-500.0,0.000211,2]
[330970255,1719976251755,-500.0,0.000211,2]
[330970256,1719976251769,-500.0,0.000211,2]
[330970257,1719976251780,-500.0,0.000211,2]
[330970258,1719976251791,-500.0,0.000211,2]
[330970259,1719976251802,-500.0,0.000211,2]
[330970260,1719976251812,-500.0,0.000211,2]
[330970261,1719976251822,-500.0,0.000211,2]
[330970262,1719976251831,-500.0,0.000211,2]
[330970263,1719976251841,-500.0,0.000211,2]
[330970264,1719976251851,-500.0,0.000211,2]
[330970265,1719976251860,-500.0,0.000211,2]
[330970266,1719976251870,-500.0,0.000211,2]
[330970267,1719976251879,-500.0,0.000211,2]
[330970268,1719976251888,-500.0,0.000211,2]
[330970269,1719976251898,-500.0,0.000211,2]
[330970270,1719976251907,-500.0,0.000211,2]
[330970271,1719976251916,-500.0,0.000211,2]
[330970272,1719976251925,-500.0,0.000211,2]
[330970273,1719976251935,-500.0,0.000211,2]
[330970274,1719976251944,-500.0,0.000211,2]
[330970275,1719976251953,-500.0,0.000211,2]
[330970276,1719976251962,-500.0,0.000211,2]
[330970277,1719976251971,-500.0,0.000211,2]
[330970278,1719976251981,-500.0,0.000211,2]
[330970279,1719976251990,-500.0,0.000211,2]
[330970280,1719976251999,-500.0,0.000211,2]
[330970281,1719976252008,-500.0,0.000211,2]
[330970282,1719976252021,-500.0,0.000211,2]
[330970283,1719976252031,-500.0,0.000211,2]
[330970284,1719976252040,-500.0,0.000211,2]
[330970285,1719976252049,-500.0,0.000211,2]
[330970286,1719976252059,-500.0,0.000211,2]
[330970287,1719976252068,-500.0,0.000211,2]
[330970288,1719976252077,-500.0,0.000211,2]
[330970289,1719976252086,-500.0,0.000211,2]
[330970290,1719976252095,-500.0,0.000211,2]
[330970291,1719976252104,-500.0,0.000211,2]
[330970292,1719976252114,-500.0,0.000211,2]
[330970293,1719976252123,-500.0,0.000211,2]
[330970294,1719976252132,-500.0,0.000211,2]
[330970295,1719976252141,-500.0,0.000211,2]
[330970296,1719976252151,-500.0,0.000211,2]
[330970297,1719976252160,-500.0,0.000211,2]
[330970298,1719976252170,-500.0,0.000211,2]
[330970299,1719976252178,-500.0,0.000211,2]
[330970300,1719976252188,-500.0,0.000211,2]
[330970301,1719976252198,-500.0,0.000211,2]
[330970302,1719976252211,-500.0,0.000211,2]
[330970303,1719976252221,-500.0,0.000211,2]
[330970304,1719976252230,-500.0,0.000211,2]
[330970305,1719976252240,-500.0,0.000211,2]
[330970306,1719976252251,-500.0,0.000211,2]
[330970307,1719976252264,-500.0,0.000211,2]
[330970308,1719976252273,-500.0,0.000211,2]
[330970309,1719976252282,-500.0,0.000211,2]
[330970310,1719976252292,-500.0,0.000211,2]
[330970311,1719976252301,-500.0,0.000211,2]
[330970312,1719976252311,-500.0,0.000211,2]
[330970313,1719976252320,-500.0,0.000211,2]
[330970314,1719976252329,-500.0,0.000211,2]
[330970315,1719976252338,-500.0,0.000211,2]
[330970316,1719976252349,-500.0,0.000211,2]
[330970317,1719976252359,-500.0,0.000211,2]
[330970318,1719976252369,-500.0,0.000211,2]
[330970319,1719976252378,-500.0,0.000211,2]
[330970320,1719976252388,-500.0,0.000211,2]
[330970321,1719976252398,-500.0,0.000211,2]
[330970322,1719976252407,-500.0,0.000211,2]
[330970323,1719976252416,-500.0,0.000211,2]
[330970324,1719976252425,-500.0,0.000211,2]
[330970325,1719976252435,-500.0,0.000211,2]
[330970326,1719976252445,-500.0,0.000211,2]
[330970327,1719976252454,-500.0,0.000211,2]
[330970328,1719976252463,-500.0,0.000211,2]
[330970329,1719976252473,-500.0,0.000211,2]
[330970330,1719976252483,-500.0,0.000211,2]
[330970331,1719976252492,-500.0,0.000211,2]
[330970332,1719976252501,-500.0,0.000211,2]
[330970333,1719976252513,-500.0,0.000211,2]
[330970334,1719976252522,-500.0,0.000211,2]
[330970335,1719976252531,-500.0,0.000211,2]
[330970336,1719976252540,-500.0,0.000211,2]
[330970337,1719976252550,-500.0,0.000211,2]
[330970338,1719976252560,-500.0,0.000211,2]
[330970339,1719976252570,-500.0,0.000211,2]
[330970340,1719976252579,-500.0,0.000211,2]
[330970341,1719976252588,-500.0,0.000211,2]
[330970342,1719976252598,-500.0,0.000211,2]
[330970343,1719976252607,-500.0,0.000211,2]
[330970344,1719976252617,-500.0,0.000211,2]
[330970345,1719976252626,-500.0,0.000211,2]
[330970346,1719976252635,-500.0,0.000211,2]
[330970347,1719976252645,-500.0,0.000211,2]
[330970348,1719976252655,-275.66,0.000211,2]
[330970349,1719976252665,-500.0,0.000211,2]
[330970350,1719976252674,-500.0,0.000211,2]
[330970351,1719976252683,-500.0,0.000211,2]
[330970352,1719976252693,-500.0,0.000211,2]
[330970353,1719976252702,-500.0,0.000211,2]
[330970354,1719976252712,-500.0,0.000211,2]
[330970355,1719976252721,-500.0,0.000211,2]
[330970356,1719976252730,-500.0,0.000211,2]
[330970357,1719976252739,-500.0,0.000211,2]
[330970358,1719976252748,-500.0,0.000211,2]
[330970359,1719976252758,-500.0,0.000211,2]
[330970360,1719976252769,-500.0,0.000211,2]
[330970361,1719976252779,-500.0,0.000211,2]
[330970362,1719976252789,-500.0,0.000211,2]
[330970363,1719976252798,-500.0,0.000211,2]
[330970364,1719976252808,-378.32,0.000211,2]
[330970365,1719976252817,-500.0,0.000211,2]
[330970366,1719976252827,-500.0,0.000211,2]
[330970367,1719976252837,-259.26373327,0.00021103,2]
[330970368,1719976252846,-150.0,0.00021112,2]
[330970369,1719976252855,-1386.77048409,0.00021113,2]
[330970370,1719976252864,-150.0,0.00021124,2]
[330970371,1719976252873,-1572.0,0.00021126,2]
[330970372,1719976252883,-189.67498527,0.0002113,2]
[330970373,1719976252892,-166.66666668,0.00021131,2]
[330970374,1719976252901,-150.0,0.00021132,2]
[330970375,1719976252910,-150.0,0.00021137,2]
[330970376,1719976252919,-300.0,0.00021153,2]
[330970377,1719976252928,-150.0,0.00021155,2]
[330970378,1719976252938,-1500.0,0.00021179,2]
[330970379,1719976252947,-150.0,0.0002118,2]
[330970380,1719976252956,-152.26339483,0.00021185,2]
[330970381,1719976252967,-1500.0,0.00021189,2]
[330970382,1719976252976,-150.0,0.00021201,2]
[330970383,1719976252985,-2712.83039665,0.00021211,2]
[330970384,1719976252995,-150.0,0.00021216,2]
[330970385,1719976253004,-600.0,0.00021225,2]
[330970386,1719976253013,-1386.77048409,0.00021234,2]
[330970387,1719976253023,-714.79884749,0.00021245,2]
[330970388,1719976253032,-283.5472581,0.00021253,2]
[330970389,1719976253042,-714.79884749,0.00021259,2]
[330970390,1719976253051,-150.0,0.00021266,4]
[330970391,1719976253060,-300.0,0.00021272,2]
[330970392,1719976253070,-151.0,0.00021275,2]
[330970393,1719976253079,-714.79884749,0.00021282,2]
[330970394,1719976253088,-150.0,0.00021284,2]
[330970395,1719976253097,-1309.96512712,0.00021288,2]
[330970396,1719976253107,-150.0,0.00021291,2]
[330970397,1719976253115,-315.78763447,0.00021291,2]
[330970398,1719976253125,-150.0,0.00021302,2]
[330970399,1719976253134,-150.0,0.00021315,2]
[330970400,1719976253144,-587.40649634,0.00021315,2]
[330970401,1719976253154,-284.663322,0.00021322,2]
[330970402,1719976253163,-150.28,0.00021342,2]
[330970403,1719976253172,-853.72,0.00021342,2]
[330970404,1719976253182,-167.03,0.00021342,2]
[330970405,1719976253191,-166.66,0.00021342,2]
[330970406,1719976253200,-470.99,0.00021342,2]
[330970407,1719976253210,-209.09,0.00021342,2]
[330970408,1719976253221,-150.0,0.00021349,2]
[330970409,1719976253231,-190.428706,0.0002135,2]
[330970410,1719976253241,-247.137481,0.0002135,2]
[330970411,1719976253252,-174.779569,0.0002135,2]
[330970412,1719976253264,-1262.445855,0.0002135,2]
[330970413,1719976253273,-150.0,0.0002135,2]
[330970414,1719976253282,-1309.96512712,0.00021361,2]
[330970415,1719976253291,-150.0,0.00021362,2]
[330970416,1719976253302,-150.0,0.00021365,2]
[330970417,1719976253312,-150.0,0.00021372,2]
[330970418,1719976253321,-1535.29037593,0.00021381,2]
[330970419,1719976253330,-1309.96512712,0.00021397,2]
[330970420,1719976253340,-4473.040082,0.00021397,2]
[330970421,1719976253350,-4473.040082,0.00021397,2]
[330970422,1719976253360,-1005.0,0.000214,2]
[330970423,1719976253370,-152.97159455,0.00021404,2]
[330970424,1719976253381,-500.0,0.00021405,7]
[330970425,1719976253392,-166.66666667,0.00021408,2]
[330970426,1719976253402,-152.26339483,0.00021413,2]
[330970427,1719976253411,-1309.96512712,0.00021419,2]
[330970428,1719976253420,-300.0,0.00021435,2]
[330970429,1719976253430,-151.0,0.00021437,2]
[330970430,1719976253440,-151.0,0.00021437,2]
[330970431,1719976253449,-151.0,0.00021437,2]
[330970432,1719976253459,-28552.10151955,0.00021437,2]
[330970433,1719976253468,-714.79884749,0.0002145,2]
[330970434,1719976253478,-221.25810012,0.00021453,2]
[330970435,1719976253488,-1500.0,0.00021458,2]
[330970436,1719976253498,-1500.0,0.00021469,2]
[330970437,1719976253508,-283.5472581,0.0002147,2]
[330970438,1719976253522,-452.8864648,0.00021478,2]
[330970439,1719976253531,-1500.0,0.00021483,2]
[330970440,1719976253540,-151.0,0.00021483,2]
[330970441,1719976253550,-151.0,0.00021483,2]
[330970442,1719976253559,-151.0,0.00021483,2]
[330970443,1719976253568,-1500.0,0.00021487,2]
[330970444,1719976253577,-1500.0,0.00021487,2]
[330970445,1719976253586,-212.58884245,0.00021493,2]
[330970446,1719976253595,-1500.0,0.00021493,2]
[330970447,1719976253605,-1309.96512712,0.00021496,2]
[330970448,1719976253614,-154.8189548,0.00021498,2]
[330970449,1719976253674,-150.0,0.00021499,2]
[330970450,1719976253684,-150.0,0.00021499,2]
[330970451,1719976253693,-155.04468759,0.00021499,2]
[330970452,1719976253702,-1000.0,0.000215,2]
[330970453,1719976253711,-178.15,0.00021518,2]
[330970454,1719976253721,-150.0,0.00021536,2]
[330970455,1719976253730,-150.0,0.00021537,2]
[330970456,1719976253739,-587.40649634,0.00021538,2]
[330970457,1719976253748,-151.77989858,0.00021548,2]
[330970458,1719976253757,-428.92663214,0.00021558,2]
[330970459,1719976253769,-152.26339483,0.00021559,2]
[330970460,1719976253778,-221.25810012,0.00021559,2]
[330970461,1719976253789,-283.5472581,0.00021561,2]
[330970462,1719976253798,-189.67498527,0.00021564,2]
[330970463,1719976253808,-154.8189548,0.00021571,2]
[330970464,1719976253818,-153.39413633,0.00021572,2]
[330970465,1719976253827,-170.9758157,0.00021574,2]
[330970466,1719976253837,-1386.77048409,0.00021577,2]
[330970467,1719976253846,-152.97159455,0.00021579,2]
[330970468,1719976253855,-151.0669482,0.00021579,2]
[330970469,1719976253865,-150.0,0.00021581,2]
[330970470,1719976253874,-150.0,0.00021582,2]
[330970471,1719976253882,-150.0,0.00021592,2]
[330970472,1719976253891,-782.0,0.000216,4]
[330970473,1719976253901,-150.0,0.00021608,2]
[330970474,1719976253910,-150.0,0.00021616,2]
[330970475,1719976253919,-1262.445855,0.00021617,2]
[330970476,1719976253928,-150.0,0.00021617,2]
[330970477,1719976253938,-151.0,0.00021618,2]
[330970478,1719976253947,-1386.77048409,0.00021621,2]
[330970479,1719976253957,-1500.0,0.00021626,2]
[330970480,1719976253966,-154.8189548,0.00021629,2]
[330970481,1719976253975,-152.26339483,0.00021639,2]
[330970482,1719976253983,-2000.0,0.00021643,2]
[330970483,1719976253993,-403.1,0.00021644,2]
[330970484,1719976254002,-282.88,0.00021644,2]
[330970485,1719976254011,-156.12,0.00021644,2]
[330970486,1719976254021,-152.26339483,0.00021649,2]
[330970487,1719976254030,-150.0,0.0002165,2]
[330970488,1719976254039,-150.0,0.0002165,2]
[330970489,1719976254049,-152.97159455,0.00021651,2]
[330970490,1719976254059,-500.38250462,0.00021655,2]
[330970491,1719976254068,-150.0,0.00021657,2]
[330970492,1719976254078,-150.0,0.00021661,2]
[330970493,1719976254088,-155.86954729,0.00021665,2]
[330970494,1719976254097,-1386.77048409,0.0002167,2]
[330970495,1719976254106,-189.67498527,0.00021675,2]
[330970496,1719976254116,-500.0,0.00021679,7]
[330970497,1719976254125,-500.38250462,0.0002168,2]
[330970498,1719976254134,-500.23307271,0.00021682,2]
[330970499,1719976254144,-150.0,0.00021682,2]
[330970500,1719976254153,-152.97159455,0.00021691,2]
[330970501,1719976254163,-154.87527333,0.00021692,2]
[330970502,1719976254173,-1500.0,0.00021699,2]
[330970503,1719976254182,-1514.0,0.000217,2]
[330970504,1719976254191,-154.41149919,0.00021702,2]
[330970505,1719976254200,-587.40649634,0.00021702,2]
[330970506,1719976254212,-300.0,0.0002171,2]
[330970507,1719976254223,-166.66666666,0.0002171,2]
[330970508,1719976254233,-150.0,0.00021717,2]
[330970509,1719976254243,-150.0,0.00021749,2]
[330970510,1719976254255,-714.79884749,0.0002176,2]
[330970511,1719976254265,-714.79884749,0.00021767,2]
[330970512,1719976254275,-1605.28204855,0.00021769,2]
[330970513,1719976254284,-150.0,0.00021777,2]
[330970514,1719976254295,-150.0,0.00021782,2]
[330970515,1719976254305,-150.0,0.00021783,2]
[330970516,1719976254315,-142854.37630271,0.000218,2]
[330970517,1719976254324,-950.3,0.000218,2]
[330970518,1719976254333,-712.0,0.000218,2]
[330970519,1719976254345,-1000.0,0.000218,2]
[330970520,1719976254356,-1000.0,0.000218,2]
[330970521,1719976254365,-152.0,0.000218,4]
[330970522,1719976254375,-152.26339483,0.00021806,2]
[330970523,1719976254384,-155.04468759,0.00021811,2]
[330970524,1719976254393,-708.98056998,0.00021817,2]
[330970525,1719976254403,-154.41149919,0.00021819,2]
[330970526,1719976254412,-1309.96512712,0.00021819,2]
[330970527,1719976254421,-6279.51081998,0.0002182,2]
[330970528,1719976254431,-150.0,0.00021831,2]
[330970529,1719976254440,-1000.0,0.00021832,2]
[330970530,1719976254449,-500.0,0.00021832,2]
[330970531,1719976254458,-200.0,0.00021832,2]
[330970532,1719976254467,-150.0,0.00021833,2]
[330970533,1719976254477,-2018.95610953,0.00021838,2]
[330970534,1719976254486,-155.0,0.00021839,2]
[330970535,1719976254496,-2018.95610953,0.0002184,2]
[330970536,1719976254505,-500.0,0.0002184,2]
[330970537,1719976254516,-500.0,0.0002184,2]
[330970538,1719976254525,-500.0,0.0002184,2]
[330970539,1719976254534,-500.0,0.0002184,2]
[330970540,1719976254542,-500.0,0.0002184,2]
[330970541,1719976254553,-500.0,0.0002184,2]
[330970542,1719976254562,-500.0,0.0002184,2]
[330970543,1719976254571,-500.0,0.0002184,2]
[330970544,1719976254580,-500.0,0.0002184,2]
[330970545,1719976254589,-500.0,0.0002184,2]
[330970546,1719976254598,-500.0,0.0002184,2]
[330970547,1719976254606,-500.0,0.0002184,2]
[330970548,1719976254615,-500.0,0.0002184,2]
[330970549,1719976254624,-500.0,0.0002184,2]
[330970550,1719976254633,-500.0,0.0002184,2]
[330970551,1719976254642,-500.0,0.0002184,2]
[330970552,1719976254656,-500.0,0.0002184,2]
[330970553,1719976254665,-500.0,0.0002184,2]
[330970554,1719976254674,-500.0,0.0002184,2]
[330970555,1719976254683,-500.0,0.0002184,2]
[330970556,1719976254692,-500.0,0.0002184,2]
[330970557,1719976254702,-500.0,0.0002184,2]
[330970558,1719976254711,-500.0,0.0002184,2]
[330970559,1719976254720,-500.0,0.0002184,2]
[330970560,1719976254729,-500.0,0.0002184,2]
[330970561,1719976254739,-500.0,0.0002184,2]
[330970562,1719976254749,-500.0,0.0002184,2]
[330970563,1719976254758,-500.0,0.0002184,2]
[330970564,1719976254773,-500.0,0.0002184,2]
[330970565,1719976254781,-500.0,0.0002184,2]
[330970566,1719976254791,-500.0,0.0002184,2]
[330970567,1719976254800,-500.0,0.0002184,2]
[330970568,1719976254809,-500.0,0.0002184,2]
[330970569,1719976254818,-500.0,0.0002184,2]
[330970570,1719976254828,-500.0,0.0002184,2]
[330970571,1719976254837,-500.0,0.0002184,2]
[330970572,1719976254846,-500.0,0.0002184,2]
[330970573,1719976254856,-500.0,0.0002184,2]
[330970574,1719976254865,-500.0,0.0002184,2]
[330970575,1719976254874,-500.0,0.0002184,2]
[330970576,1719976254883,-500.0,0.0002184,2]
[330970577,1719976254893,-500.0,0.0002184,2]
[330970578,1719976254902,-500.0,0.0002184,2]
[330970579,1719976254911,-150.0,0.00021841,4]
[330970580,1719976254921,-500.0,0.00021849,2]
[330970581,1719976254930,-500.0,0.00021849,2]
[330970582,1719976254941,-500.0,0.00021849,2]
[330970583,1719976254950,-500.0,0.00021849,2]
[330970584,1719976254960,-500.0,0.00021849,2]
[330970585,1719976254969,-500.0,0.00021849,2]
[330970586,1719976254980,-164.99438064,0.00021853,2]
[330970587,1719976254989,-714.79884749,0.00021855,2]
[330970588,1719976255000,-152.26339483,0.00021857,2]
[330970589,1719976255010,-150.0,0.00021859,2]
[330970590,1719976255027,-1276.03350758,0.00021859,2]
[330970591,1719976255039,-150.0,0.00021864,2]
[330970592,1719976255050,-716.63369653,0.00021865,2]
[330970593,1719976255059,-500.38250462,0.00021868,2]
[330970594,1719976255069,-412.0,0.00021871,2]
[330970595,1719976255078,-365.78699378,0.00021873,2]
[330970596,1719976255088,-150.0,0.00021874,2]
[330970597,1719976255098,-150.0,0.00021874,2]
[330970598,1719976255107,-1500.0,0.00021875,2]
[330970599,1719976255117,-902.0,0.00021877,2]
[330970600,1719976255126,-1262.445855,0.00021883,2]
[330970601,1719976255135,-1500.0,0.00021884,2]
[330970602,1719976255145,-228.74288827,0.00021886,2]
[330970603,1719976255154,-155.04468759,0.00021886,2]
[330970604,1719976255163,-174.42,0.0002189,2]
[330970605,1719976255172,-150.0,0.00021891,2]
[330970606,1719976255182,-155.86954729,0.00021892,2]
[330970607,1719976255191,-155.0,0.000219,2]
[330970608,1719976255200,-491.0,0.000219,4]
[330970609,1719976255218,-257.0,0.000219,2]
[330970610,1719976255228,-150.0,0.000219,3]
[330970611,1719976255238,-370.0,0.000219,4]
[330970612,1719976255247,-151.77989858,0.00021909,2]
[330970613,1719976255258,-157.070311,0.00021916,2]
[330970614,1719976255275,-157.070311,0.00021916,2]
[330970615,1719976255285,-157.070311,0.00021916,2]
[330970616,1719976255295,-157.070311,0.00021916,2]
[330970617,1719976255304,-157.070311,0.00021916,2]
[330970618,1719976255313,-157.070311,0.00021916,2]
[330970619,1719976255323,-157.070311,0.00021916,2]
[330970620,1719976255331,-157.070311,0.00021916,2]
[330970621,1719976255343,-157.070311,0.00021916,2]
[330970622,1719976255352,-157.070311,0.00021916,2]
[330970623,1719976255362,-157.070311,0.00021916,2]
[330970624,1719976255371,-157.070311,0.00021916,2]
[330970625,1719976255380,-157.070311,0.00021916,2]
[330970626,1719976255390,-157.070311,0.00021916,2]
[330970627,1719976255399,-157.070311,0.00021916,2]
[330970628,1719976255409,-209.73159914,0.00021916,2]
[330970629,1719976255418,-526.39897229,0.00021916,2]
[330970630,1719976255428,-534.2570799,0.00021917,2]
[330970631,1719976255437,-885.47328406,0.00021917,2]
[330970632,1719976255446,-448.19047151,0.00021917,2]
[330970633,1719976255456,-292.03884472,0.00021917,2]
[330970634,1719976255465,-174355.97382622,0.00021917,2]
[330970635,1719976255474,-550.6201206,0.00021917,2]
[330970636,1719976255483,-500.0,0.00021917,4]
[330970637,1719976255492,-500.0,0.00021917,4]
[330970638,1719976255502,-500.0,0.00021917,4]
[330970639,1719976255512,-500.0,0.00021917,4]
[330970640,1719976255524,-500.0,0.00021917,4]
[330970641,1719976255533,-500.0,0.00021917,4]
[330970642,1719976255543,-500.0,0.00021917,4]
[330970643,1719976255552,-500.0,0.00021917,4]
[330970644,1719976255562,-500.0,0.00021917,4]
[330970645,1719976255571,-500.0,0.00021917,4]
[330970646,1719976255580,-500.0,0.00021917,4]
[330970647,1719976255589,-500.0,0.00021917,4]
[330970648,1719976255599,-500.0,0.00021917,4]
[330970649,1719976255608,-500.0,0.00021917,4]
[330970650,1719976255617,-283.9,0.00021917,4]
[330970651,1719976255626,-500.0,0.00021917,4]
[330970652,1719976255635,-500.0,0.00021917,4]
[330970653,1719976255644,-500.0,0.00021917,4]
[330970654,1719976255656,-500.0,0.00021917,4]
[330970655,1719976255665,-500.0,0.00021917,4]
[330970656,1719976255674,-500.0,0.00021917,4]
[330970657,1719976255683,-500.0,0.00021917,4]
[330970658,1719976255692,-500.0,0.00021917,4]
[330970659,1719976255701,-500.0,0.00021917,4]
[330970660,1719976255710,-1312.54,0.00021917,4]
[330970661,1719976255720,-1312.54,0.00021917,4]
[330970662,1719976255729,-1312.54,0.00021917,4]
[330970663,1719976255738,-1312.54,0.00021917,4]
[330970664,1719976255747,-1312.54,0.00021917,4]
[330970665,1719976255756,-1312.54,0.00021917,4]
[330970666,1719976255768,-1312.54,0.00021917,4]
[330970667,1719976255778,-1312.54,0.00021917,4]
[330970668,1719976255787,-1312.54,0.00021917,4]
[330970669,1719976255796,-1312.54,0.00021917,4]
[330970670,1719976255805,-1312.54,0.00021917,4]
[330970671,1719976255814,-1312.54,0.00021917,4]
[330970672,1719976255823,-1312.54,0.00021917,4]
[330970673,1719976255832,-1312.54,0.00021917,4]
[330970674,1719976255841,-1312.54,0.00021917,4]
[330970675,1719976255850,-1312.54,0.00021917,4]
[330970676,1719976255859,-1312.54,0.00021917,4]
[330970677,1719976255869,-1312.54,0.00021917,4]
[330970678,1719976255878,-1312.54,0.00021917,4]
[330970679,1719976255887,-1312.54,0.00021917,4]
[330970680,1719976255897,-1312.54,0.00021917,4]
[330970681,1719976255906,-1312.54,0.00021917,4]
[330970682,1719976255915,-1312.54,0.00021917,4]
[330970683,1719976255924,-1312.54697864,0.00021917,4]
[330970684,1719976255934,-500.0,0.00021917,4]
[330970685,1719976255943,-500.0,0.00021917,4]
[330970686,1719976255952,-500.0,0.00021917,4]
[330970687,1719976255961,-500.0,0.00021917,4]
[330970688,1719976255971,-500.0,0.00021917,4]
[330970689,1719976255980,-500.0,0.00021917,4]
[330970690,1719976255989,-500.0,0.00021917,4]
[330970691,1719976255998,-500.0,0.00021917,4]
[330970692,1719976256007,-500.0,0.00021917,4]
[330970693,1719976256018,-462.28,0.00021917,4]
[330970694,1719976256028,-500.0,0.00021917,4]
[330970695,1719976256037,-500.0,0.00021917,4]
[330970696,1719976256046,-500.0,0.00021917,4]
[330970697,1719976256055,-249.0,0.00021917,4]
[330970698,1719976256064,-500.0,0.00021917,4]
[330970699,1719976256073,-605.68,0.00021917,4]
[330970700,1719976256082,-500.0,0.00021917,4]
[330970701,1719976256091,-532.54,0.00021917,4]
[330970702,1719976256101,-500.0,0.00021917,4]
[330970703,1719976256109,-500.0,0.00021917,4]
[330970704,1719976256119,-238.09472674,0.00021917,4]
[330970705,1719976256128,-500.0,0.00021917,4]
[330970706,1719976256138,-500.0,0.00021917,4]
[330970707,1719976256147,-500.0,0.00021917,4]
[330970708,1719976256156,-500.0,0.00021917,4]
[330970709,1719976256166,-447.27640792,0.00021917,4]
[330970710,1719976256175,-500.0,0.00021917,4]
[330970711,1719976256184,-500.0,0.00021917,4]
[330970712,1719976256193,-500.0,0.00021917,4]
[330970713,1719976256202,-500.0,0.00021917,4]
[330970714,1719976256212,-500.0,0.00021917,4]
[330970715,1719976256222,-500.0,0.00021917,4]
[330970716,1719976256232,-500.0,0.00021917,4]
[330970717,1719976256241,-500.0,0.00021917,4]
[330970718,1719976256252,-500.0,0.00021917,4]
[330970719,1719976256261,-500.0,0.00021917,4]
[330970720,1719976256272,-500.0,0.00021917,4]
[330970721,1719976256281,-613.25535633,0.00021917,4]
[330970722,1719976256290,-500.0,0.00021917,4]
[330970723,1719976256300,-500.0,0.00021917,4]
[330970724,1719976256309,-500.0,0.00021917,4]
[330970725,1719976256319,-500.0,0.00021917,4]
[330970726,1719976256328,-500.0,0.00021917,4]
[330970727,1719976256337,-500.0,0.00021917,4]
[330970728,1719976256347,-563.19817427,0.00021917,4]
[330970729,1719976256357,-500.0,0.00021917,4]
[330970730,1719976256367,-500.0,0.00021917,4]
[330970731,1719976256376,-500.0,0.00021917,4]
[330970732,1719976256385,-500.0,0.00021917,4]
[330970733,1719976256395,-500.0,0.00021917,4]
[330970734,1719976256403,-500.0,0.00021917,4]
[330970735,1719976256413,-500.0,0.00021917,4]